bitfinex-derivatives/quotes_BTCF0:USTF0_20241110
["timestamp","ask_amount","ask_price","bid_price","bid_amount"]
[1731231729821,0.07978541,79523.0,79519.0,0.05030244]
[1731231730009,0.04928827,79522.0,79519.0,0.05030244]
[1731231730211,0.07978541,79523.0,79519.0,0.05030244]
[1731231730411,0.0492883,79522.0,79519.0,0.05030244]
[1731231730725,0.04929111,79521.0,79519.0,0.05030244]
[1731231730909,0.04928774,79520.0,79519.0,0.05030244]
[1731231731817,0.20956541,79532.0,79519.0,0.05030244]
[1731231732117,0.04948842,79529.0,79519.0,0.05030244]
[1731231732422,0.04948842,79528.0,79519.0,0.05030244]
[1731231732607,0.04948842,79527.0,79519.0,0.05030244]
[1731231732805,0.04948842,79526.0,79519.0,0.05030244]
[1731231733010,0.04948842,79525.0,79519.0,0.05030244]
[1731231733208,0.04948842,79524.0,79519.0,0.05030244]
[1731231733417,0.04935736,79523.0,79519.0,0.05030244]
[1731231733617,0.07978541,79527.0,79519.0,0.05030244]
[1731231735822,0.07978541,79527.0,79519.0,0.08767075]
[1731231736421,0.07978541,79527.0,79519.0,0.05030244]
[1731231741723,0.45828,79530.0,79519.0,0.05030244]
[1731231741916,0.07978541,79527.0,79519.0,0.05030244]
[1731231743121,0.07978541,79522.0,79519.0,0.05030244]
[1731231746526,0.44058541,79530.0,79519.0,0.05030244]
[1731231746719,0.0974,79529.0,79519.0,0.05030244]
[1731231749026,0.0974,79529.0,79519.0,0.13008785]
[1731231750331,0.0974,79529.0,79519.0,0.05030244]
[1731231750527,0.0974,79529.0,79519.0,0.10060488]
[1731231750734,0.07978541,79526.0,79519.0,0.10060488]
[1731231751432,0.04934689,79525.0,79519.0,0.10060488]
[1731231751634,0.04934689,79524.0,79519.0,0.10060488]
[1731231751832,0.04934689,79523.0,79519.0,0.10060488]
[1731231752136,0.04934689,79522.0,79519.0,0.10060488]
[1731231752326,0.07978541,79526.0,79519.0,0.10060488]
[1731231752528,0.04930441,79525.0,79519.0,0.10060488]
[1731231752724,0.04930441,79524.0,79519.0,0.10060488]
[1731231752930,0.04930441,79523.0,79519.0,0.10060488]
[1731231753129,0.04930441,79522.0,79519.0,0.10060488]
[1731231753333,0.07978541,79526.0,79519.0,0.10060488]
[1731231753526,0.04927199,79525.0,79519.0,0.10060488]
[1731231753732,0.04927199,79524.0,79519.0,0.10060488]
[1731231753931,0.04927199,79523.0,79519.0,0.10060488]
[1731231754231,0.07978541,79526.0,79519.0,0.10060488]
[1731231754232,0.04927199,79522.0,79519.0,0.10060488]
[1731231754428,0.04927199,79521.0,79519.0,0.10060488]
[1731231754639,0.04927199,79520.0,79519.0,0.10060488]
[1731231755825,0.04927199,79527.0,79519.0,0.10060488]
[1731231756032,0.10538243,79527.0,79519.0,0.10060488]
[1731231756538,0.04927199,79526.0,79519.0,0.10060488]
[1731231756727,0.07978541,79528.0,79519.0,0.10060488]
[1731231756728,0.04927199,79525.0,79519.0,0.10060488]
[1731231757035,0.04927199,79524.0,79519.0,0.10060488]
[1731231757331,0.04927199,79523.0,79519.0,0.10060488]
[1731231757528,0.04927199,79522.0,79519.0,0.18039029]
[1731231757730,0.3608,79530.0,79519.0,0.18039029]
[1731231757930,0.0487069,79529.0,79519.0,0.18039029]
[1731231758131,0.0487069,79528.0,79519.0,0.18039029]
[1731231758348,0.3608,79530.0,79519.0,0.18039029]
[1731231758558,0.04870474,79529.0,79519.0,0.18039029]
[1731231758865,0.3608,79530.0,79523.0,0.07978541]
[1731231759261,0.3608,79555.0,79529.0,0.07978541]
[1731231759569,0.04911305,79544.0,79542.0,0.07978541]
[1731231759862,0.04911305,79544.0,79539.0,0.3608]
[1731231760759,0.07978541,79541.0,79539.0,0.3608]
[1731231761160,0.04911305,79544.0,79539.0,0.3608]
[1731231761351,0.04911305,79544.0,79539.0,0.44058541]
[1731231763149,0.04911305,79544.0,79539.0,0.48135074]
[1731231763842,0.04911305,79544.0,79539.0,0.12055074]
[1731231764032,0.04911305,79544.0,79543.0,0.3608]
[1731231766336,0.04911305,79544.0,79543.0,0.44058541]
[1731231769440,0.07978541,79552.0,79543.0,0.44058541]
[1731231769632,0.07978541,79552.0,79548.0,0.07978541]
[1731231771240,0.07978541,79557.0,79548.0,0.07978541]
[1731231771548,0.07978541,79553.0,79548.0,0.07978541]
[1731231771942,0.07978541,79549.0,79545.0,0.0328]
[1731231772850,0.07978541,79549.0,79544.0,0.0322]
[1731231773642,0.07978541,79545.0,79543.0,0.36256]
[1731231773842,0.07978541,79545.0,79543.0,0.3608]
[1731231775356,0.07978541,79545.0,79539.0,0.04076533]
[1731231775656,0.3608,79547.0,79534.0,0.3608]
[1731231775657,0.07978541,79541.0,79534.0,0.3608]
[1731231775848,0.05091219,79540.0,79534.0,0.3608]
[1731231776044,0.05091219,79539.0,79534.0,0.3608]
[1731231776241,0.05091219,79538.0,79534.0,0.3608]
[1731231776550,0.07978541,79541.0,79534.0,0.3608]
[1731231776744,0.033,79544.0,79538.0,0.07978541]
[1731231776745,0.05051714,79540.0,79538.0,0.07978541]
[1731231776946,0.3608,79547.0,79538.0,0.07978541]
[1731231777247,0.05051118,79546.0,79543.0,0.07978541]
[1731231777447,0.3608,79547.0,79543.0,0.07978541]
[1731231777649,0.07978541,79550.0,79543.0,0.07978541]
[1731231777843,0.05097092,79549.0,79543.0,0.07978541]
[1731231778038,0.05098917,79548.0,79543.0,0.07978541]
[1731231778243,0.05098917,79547.0,79543.0,0.07978541]
[1731231778445,0.05098917,79546.0,79539.0,0.07978541]
[1731231778738,0.05098917,79545.0,79539.0,0.07978541]
[1731231778938,0.05098917,79544.0,79539.0,0.07978541]
[1731231779146,0.3608,79548.0,79539.0,0.07978541]
[1731231779947,0.05089773,79547.0,79539.0,0.07978541]
[1731231780152,0.3608,79548.0,79543.0,0.07978541]
[1731231780544,0.05090189,79547.0,79543.0,0.07978541]
[1731231780851,0.3608,79548.0,79543.0,0.07978541]
[1731231781251,0.07978541,79547.0,79539.0,0.07978541]
[1731231781646,0.07978541,79547.0,79534.0,0.3608]
[1731231781842,0.07978541,79543.0,79537.0,0.07978541]
[1731231782156,0.53790541,79548.0,79537.0,0.07978541]
[1731231782357,0.53790541,79548.0,79541.0,0.07978541]
[1731231782542,0.09732,79548.0,79546.0,0.07978541]
[1731231783351,0.09732,79551.0,79546.0,0.07978541]
[1731231783551,0.3608,79550.0,79546.0,0.07978541]
[1731231783948,0.09732,79553.0,79546.0,0.07978541]
[1731231784955,0.0653,79555.0,79551.0,0.07978541]
[1731231785160,0.0324,79555.0,79551.0,0.07978541]
[1731231787058,0.09732,79556.0,79551.0,0.07978541]
[1731231787245,0.3608,79558.0,79555.0,0.07978541]
[1731231787442,0.3608,79558.0,79551.0,0.07978541]
[1731231788250,0.3608,79558.0,79543.0,0.36244]
[1731231788251,0.15957082,79552.0,79543.0,0.36244]
[1731231788456,0.07978541,79544.0,79543.0,0.3608]
[1731231788653,0.07978541,79552.0,79543.0,0.3608]
[1731231789048,0.11043978,79551.0,79543.0,0.3608]
[1731231789256,0.07978541,79552.0,79543.0,0.3608]
[1731231789257,0.11043978,79550.0,79543.0,0.3608]
[1731231789454,0.05163837,79549.0,79543.0,0.3608]
[1731231789654,0.13142378,79548.0,79543.0,0.3608]
[1731231789850,0.05163837,79547.0,79543.0,0.3608]
[1731231790059,0.05163837,79546.0,79543.0,0.3608]
[1731231790253,0.07978541,79548.0,79543.0,0.3608]
[1731231790450,0.05160281,79547.0,79543.0,0.3608]
[1731231790749,0.05160281,79546.0,79543.0,0.3608]
[1731231790957,0.07978541,79548.0,79543.0,0.3608]
[1731231791156,0.05161317,79547.0,79543.0,0.3608]
[1731231791464,0.05161317,79546.0,79543.0,0.3608]
[1731231791657,0.05157156,79545.0,79543.0,0.3608]
[1731231791853,0.07978541,79548.0,79543.0,0.3608]
[1731231792062,0.05149417,79547.0,79543.0,0.3608]
[1731231792357,0.05149417,79546.0,79543.0,0.3608]
[1731231792555,0.05149417,79545.0,79543.0,0.3608]
[1731231792751,0.07978541,79548.0,79543.0,0.3608]
[1731231793050,0.05149377,79547.0,79543.0,0.3608]
[1731231793255,0.07978541,79544.0,79543.0,0.3608]
[1731231793455,0.13127918,79544.0,79543.0,0.3608]
[1731231795960,0.07978541,79544.0,79543.0,0.3608]
[1731231796661,0.17710541,79544.0,79535.0,0.00188579]
[1731231796960,0.07978541,79539.0,79535.0,0.00188579]
[1731231797958,0.3608,79542.0,79535.0,0.00188579]
[1731231798162,0.07978541,79538.0,79535.0,0.00188579]
[1731231800668,0.44058541,79542.0,79535.0,0.0816712]
[1731231801564,0.07978541,79542.0,79535.0,0.0816712]
[1731231801766,0.44058541,79542.0,79535.0,0.0816712]
[1731231803965,0.05071435,79541.0,79535.0,0.0816712]
[1731231804258,0.05071435,79540.0,79535.0,0.0816712]
[1731231804457,0.05071435,79539.0,79535.0,0.0816712]
[1731231804662,0.05071435,79538.0,79535.0,0.0816712]
[1731231804870,0.44058541,79542.0,79535.0,0.0816712]
[1731231805074,0.05071085,79541.0,79535.0,0.0816712]
[1731231805268,0.05071085,79540.0,79535.0,0.0816712]
[1731231805464,0.05071085,79539.0,79535.0,0.0816712]
[1731231805673,0.05070853,79538.0,79535.0,0.0816712]
[1731231805866,0.44058541,79542.0,79535.0,0.0816712]
[1731231806067,0.05068921,79541.0,79535.0,0.0816712]
[1731231806268,0.05068832,79540.0,79535.0,0.0816712]
[1731231806465,0.05068832,79539.0,79535.0,0.0816712]
[1731231806664,0.05068918,79538.0,79535.0,0.0816712]
[1731231806865,0.44058541,79542.0,79535.0,0.0816712]
[1731231807170,0.09724,79541.0,79535.0,0.0816712]
[1731231808471,0.09724,79541.0,79535.0,0.00188579]
[1731231809066,0.09724,79540.0,79535.0,0.00188579]
[1731231809373,0.09724,79540.0,79536.0,0.07978541]
[1731231810867,0.09724,79540.0,79535.0,0.00188579]
[1731231812468,0.09724,79539.0,79535.0,0.00188579]
[1731231814172,0.07978541,79536.0,79535.0,0.00188579]
[1731231814863,0.0639,79538.0,79535.0,0.00188579]
[1731231815170,0.09724,79537.0,79535.0,0.00188579]
[1731231817279,0.07978541,79536.0,79535.0,0.00188579]
[1731231817574,0.11178541,79536.0,79535.0,0.00188579]
[1731231818076,0.032,79536.0,79535.0,0.00188579]
[1731231818270,0.20902541,79536.0,79535.0,0.00188579]
[1731231822170,0.56982541,79536.0,79535.0,0.00188579]
[1731231822872,0.3608,79536.0,79535.0,0.00188579]
[1731231823080,0.3608,79566.0,79535.0,1.54566735]
[1731231823274,0.07978541,79558.0,79553.0,0.3608]
[1731231823679,0.07978541,79554.0,79553.0,0.3608]
[1731231824186,0.09728,79557.0,79553.0,0.3608]
[1731231824575,0.09724,79557.0,79553.0,0.3608]
[1731231825880,0.09724,79557.0,79555.0,0.00346146]
[1731231826275,0.05176732,79556.0,79555.0,0.00346146]
[1731231828179,0.05176732,79556.0,79555.0,0.36426146]
[1731231828385,0.13155273,79556.0,79555.0,0.36426146]
[1731231828571,0.07978541,79556.0,79555.0,0.36426146]
[1731231829985,0.07978541,79556.0,79555.0,0.00346146]
[1731231830473,0.13112372,79556.0,79555.0,0.00346146]
[1731231831485,0.53665082,79556.0,79555.0,0.00346146]
[1731231831680,0.53665082,79556.0,79536.0,0.36244]
[1731231831681,0.37712,79555.0,79536.0,0.36244]
[1731231831883,0.07978541,79543.0,79536.0,0.3608]
[1731231832090,0.07978541,79543.0,79536.0,0.40070599]
[1731231832587,0.07978541,79543.0,79536.0,0.4804914]
[1731231834302,0.09716,79544.0,79540.0,0.07978541]
[1731231834678,0.09716,79544.0,79541.0,0.032]
[1731231837190,0.0325,79551.0,79541.0,0.032]
[1731231837592,0.07978541,79547.0,79541.0,0.032]
[1731231837891,0.11228541,79551.0,79542.0,0.07978541]
[1731231838584,0.09716,79550.0,79542.0,0.07978541]
[1731231839088,0.07978541,79547.0,79541.0,0.39444]
[1731231839291,0.07978541,79547.0,79541.0,0.3928]
[1731231840185,0.13036,79550.0,79541.0,0.3928]
[1731231840400,0.07978541,79547.0,79541.0,0.3928]
[1731231840885,0.13036,79550.0,79535.0,0.00188579]
[1731231840886,0.07978541,79543.0,79535.0,0.00188579]
[1731231843789,0.3608,79539.0,79535.0,0.00188579]
[1731231845396,0.07978541,79538.0,79535.0,0.00188579]
[1731231846494,0.3608,79539.0,79535.0,0.00188579]
[1731231847597,0.45796,79539.0,79535.0,0.00188579]
[1731231848194,0.07978541,79538.0,79535.0,0.00188579]
[1731231848995,0.0312,79537.0,79535.0,0.00188579]
[1731231849494,0.0312,79537.0,79535.0,0.05217811]
[1731231850096,0.0627,79537.0,79535.0,0.05217811]
[1731231851896,0.09716,79536.0,79535.0,0.05217811]
[1731231853802,0.2271152,79536.0,79535.0,0.05217811]
[1731231854104,0.14732979,79536.0,79535.0,0.05217811]
[1731231854397,0.2271152,79536.0,79535.0,0.05029232]
[1731231854588,0.14732979,79536.0,79535.0,0.05029232]
[1731231855487,0.41096979,79536.0,79535.0,0.05029232]
[1731231855698,0.50812979,79536.0,79535.0,0.05029232]
[1731231856296,0.45796,79536.0,79535.0,0.05029232]
[1731231856894,0.3608,79536.0,79535.0,0.05029232]
[1731231857093,0.45796,79536.0,79535.0,0.05029232]
[1731231858100,0.53774541,79536.0,79530.0,0.00015117]
[1731231858399,0.44058541,79531.0,79530.0,0.00015117]
[1731231863001,0.48066074,79531.0,79530.0,0.00015117]
[1731231866618,0.85786074,79531.0,79530.0,0.00015117]
[1731231867111,0.07978541,79524.0,79519.0,0.10060488]
[1731231867312,0.61749082,79524.0,79519.0,0.10060488]
[1731231867610,0.53770541,79524.0,79519.0,0.10060488]
[1731231867809,0.61749082,79524.0,79519.0,0.10060488]
[1731231868109,0.61760584,79524.0,79519.0,0.10060488]
[1731231869299,0.53782043,79524.0,79519.0,0.10060488]
[1731231869501,0.61760584,79524.0,79519.0,0.10060488]
[1731231870502,0.61760584,79524.0,79495.0,9.488e-05]
[1731231870503,0.37724,79523.0,79502.0,0.04040646]
[1731231870709,0.91760584,79524.0,79502.0,0.04040646]
[1731231870710,0.3608,79511.0,79502.0,0.04040646]
[1731231870905,0.45792,79511.0,79502.0,0.04040646]
[1731231871310,0.45792,79511.0,79507.0,0.03732941]
[1731231871905,0.45792,79511.0,79509.0,0.07978541]
[1731231872106,0.3608,79511.0,79509.0,0.11711482]
[1731231872305,0.3608,79511.0,79510.0,0.03921595]
[1731231872506,0.09712,79512.0,79510.0,0.00188654]
[1731231872807,0.09712,79512.0,79510.0,0.03920354]
[1731231874315,0.07978541,79514.0,79510.0,0.03920354]
[1731231875615,0.07978541,79514.0,79510.0,0.00188654]
[1731231876316,0.09712,79513.0,79510.0,0.00188654]
[1731231876618,0.17690541,79513.0,79510.0,0.00188654]
[1731231877617,0.17690541,79513.0,79509.0,0.037317]
[1731231878210,0.17690541,79513.0,79510.0,0.05030813]
[1731231878405,0.09712,79513.0,79510.0,0.05030813]
[1731231878609,0.17690541,79513.0,79510.0,0.05030813]
[1731231884119,0.44058541,79511.0,79510.0,0.05030813]
[1731231884419,0.44058541,79511.0,79510.0,0.00742336]
[1731231884618,0.45792,79511.0,79510.0,0.00742336]
[1731231885511,0.53770541,79511.0,79510.0,0.00742336]
[1731231889620,0.44058541,79511.0,79510.0,0.00742336]
[1731231889821,0.53770541,79511.0,79510.0,0.00742336]
[1731231894616,0.44058541,79511.0,79510.0,0.00742336]
[1731231894813,0.53766541,79511.0,79510.0,0.00742336]
[1731231898012,0.17686541,79511.0,79510.0,0.00742336]
[1731231898215,0.53766541,79511.0,79510.0,0.00742336]
[1731231898410,0.44058541,79511.0,79510.0,0.00742336]
[1731231898629,0.53766541,79511.0,79510.0,0.00742336]
[1731231899122,0.17686541,79511.0,79510.0,0.00742336]
[1731231899322,0.53766541,79511.0,79510.0,0.00742336]
[1731231908130,0.61745082,79511.0,79510.0,0.00742336]
[1731231908519,0.45788,79511.0,79510.0,0.00742336]
[1731231908726,0.53766541,79511.0,79510.0,0.00742336]
[1731231910230,0.45788,79511.0,79510.0,0.00742336]
[1731231910424,0.53766541,79511.0,79510.0,0.00742336]
[1731231911925,0.45788,79511.0,79510.0,0.00742336]
[1731231912126,0.53766541,79511.0,79510.0,0.00742336]
[1731231913735,0.45788,79511.0,79510.0,0.05773149]
[1731231914236,0.53766541,79511.0,79510.0,0.05773149]
[1731231914422,0.44058541,79511.0,79510.0,0.05773149]
[1731231914626,0.36091502,79524.0,79510.0,0.86460945]
[1731231914827,0.36091502,79524.0,79523.0,0.03744652]
[1731231915142,0.09896701,79529.0,79521.0,0.07978541]
[1731231915327,0.09896701,79529.0,79524.0,0.04991719]
[1731231915527,0.17875242,79529.0,79525.0,0.03737503]
[1731231916030,0.08167242,79529.0,79525.0,0.03737503]
[1731231916427,0.08167242,79529.0,79522.0,0.0302]
[1731231917330,0.00188701,79529.0,79528.0,0.3608]
[1731231922129,0.00188701,79529.0,79526.0,0.032]
[1731231923444,0.00188701,79529.0,79525.0,0.3608]
[1731231923640,0.07978541,79526.0,79525.0,0.3608]
[1731231932042,0.00188701,79529.0,79525.0,0.3608]
[1731231932245,0.00188701,79529.0,79527.0,0.07978541]
[1731231934846,0.07978541,79528.0,79525.0,0.3608]
[1731231935048,0.11218541,79528.0,79525.0,0.3608]
[1731231935538,0.0329,79527.0,79525.0,0.3608]
[1731231936136,0.0329,79527.0,79519.0,0.3608]
[1731231936341,0.07978541,79520.0,79519.0,0.3608]
[1731231938850,0.07968541,79520.0,79519.0,0.3608]
[1731231942842,0.15947082,79520.0,79519.0,0.3608]
[1731231943043,0.25643082,79520.0,79519.0,0.3608]
[1731231948239,0.25643082,79520.0,79510.0,0.42025149]
[1731231948444,0.07978541,79511.0,79510.0,0.41853149]
[1731231950750,0.17674541,79511.0,79510.0,0.41853149]
[1731231952346,0.25653082,79511.0,79510.0,0.05773149]
[1731231952547,0.17674541,79511.0,79510.0,0.05773149]
[1731231952955,0.21847039,79511.0,79510.0,0.05773149]
[1731231956350,0.12151039,79511.0,79510.0,0.05773149]
[1731231956551,0.21835039,79511.0,79510.0,0.05773149]
[1731231956748,0.2981358,79511.0,79510.0,0.05773149]
[1731231956957,0.21835039,79511.0,79510.0,0.05773149]
[1731231959662,0.2981358,79511.0,79510.0,0.05773149]
[1731231960561,0.21835039,79511.0,79510.0,0.05773149]
[1731231960759,0.2981358,79511.0,79510.0,0.05773149]
[1731231962058,0.21835039,79511.0,79510.0,0.05773149]
[1731231964258,0.2981358,79511.0,79510.0,0.05773149]
[1731231964562,0.21835039,79511.0,79510.0,0.05773149]
[1731231966459,0.21825039,79511.0,79510.0,0.05773149]
[1731231966869,0.6753558,79511.0,79505.0,0.03735473]
[1731231967161,0.52037082,79506.0,79500.0,0.00164]
[1731231967362,0.52037082,79506.0,79499.0,0.03282509]
[1731231967363,0.07978541,79501.0,79499.0,0.03282509]
[1731231967568,0.17666541,79500.0,79495.0,9.488e-05]
[1731231967759,0.07978541,79496.0,79494.0,0.00188687]
[1731231967960,0.07978541,79495.0,79491.0,0.05032016]
[1731231968162,0.52037082,79492.0,79487.0,0.03821473]
[1731231968359,0.52037082,79492.0,79487.0,0.00086]
[1731231968360,0.07978541,79488.0,79487.0,0.00086]
[1731231968856,0.02958174,79488.0,79487.0,0.00086]
[1731231969067,0.12636174,79488.0,79487.0,0.00086]
[1731231969258,0.12636174,79488.0,79474.0,0.3608]
[1731231969259,0.20614715,79488.0,79474.0,0.3608]
[1731231969457,0.20614715,79488.0,79466.0,0.0321]
[1731231969458,0.15957082,79478.0,79466.0,0.0321]
[1731231969660,0.3608,79485.0,79466.0,0.0321]
[1731231969661,0.07978541,79472.0,79466.0,0.0321]
[1731231969868,0.17666541,79472.0,79471.0,0.15595507]
[1731231970464,0.25635082,79472.0,79471.0,0.11607962]
[1731231971363,0.21858588,79472.0,79471.0,0.11607962]
[1731231971967,0.12170588,79472.0,79471.0,0.11607962]
[1731231972168,0.21858588,79472.0,79471.0,0.11607962]
[1731231972361,0.70109176,79472.0,79456.0,0.0321]
[1731231972565,0.12170588,79463.0,79456.0,0.0321]
[1731231972869,0.21858588,79463.0,79456.0,0.0321]
[1731231973064,0.09688,79463.0,79456.0,0.0321]
[1731231973465,0.09678,79463.0,79456.0,0.0321]
[1731231973772,0.09688,79463.0,79456.0,0.0321]
[1731231974072,0.09688,79463.0,79457.0,0.0331]
[1731231976265,0.09688,79463.0,79456.0,0.0321]
[1731231976472,0.09688,79463.0,79453.0,0.3608]
[1731231977265,0.09699608,79463.0,79462.0,1e-08]
[1731231978276,0.09699608,79463.0,79453.0,0.3608]
[1731231978573,0.12170588,79454.0,79453.0,0.3608]
[1731231978879,0.21862588,79454.0,79453.0,0.3608]
[1731231980269,0.21852588,79454.0,79440.0,0.00188815]
[1731231980576,0.12170588,79442.0,79440.0,0.00188815]
[1731231980776,0.09692,79441.0,79440.0,0.00188815]
[1731231982482,0.21852588,79441.0,79440.0,0.00188815]
[1731231983182,0.09682,79441.0,79440.0,0.00188815]
[1731231983476,0.00012624,79440.0,79418.0,0.05036641]
[1731231983671,0.12170588,79431.0,79418.0,0.05036641]
[1731231983866,0.3608,79438.0,79418.0,0.05036641]
[1731231984067,0.09692,79437.0,79419.0,0.04140214]
[1731231984274,0.12170588,79433.0,79419.0,0.04140214]
[1731231984468,0.12160588,79433.0,79419.0,0.04140214]
[1731231984674,0.09684,79432.0,79419.0,0.04140214]
[1731231985479,0.12160588,79433.0,79419.0,0.04140214]
[1731231985670,0.09684,79432.0,79419.0,0.04140214]
[1731231987181,0.12160588,79433.0,79419.0,0.04140214]
[1731231987375,0.09684,79432.0,79419.0,0.04140214]
[1731231987878,0.09674,79432.0,79419.0,0.04140214]
[1731231988283,0.12160588,79433.0,79419.0,0.04140214]
[1731231988579,0.09684,79434.0,79428.0,0.0332]
[1731231988878,0.12170588,79438.0,79428.0,0.065]
[1731231989085,0.3608,79439.0,79430.0,0.12179582]
[1731231989281,0.21854588,79438.0,79431.0,0.0302]
[1731231989784,0.3608,79439.0,79430.0,8.994e-05]
[1731231989785,0.12170588,79432.0,79430.0,8.994e-05]
[1731231991580,0.09684,79431.0,79430.0,8.994e-05]
[1731231993983,0.09674,79431.0,79430.0,8.994e-05]
[1731231995384,0.12170588,79432.0,79430.0,8.994e-05]
[1731231995588,0.12170588,79439.0,79430.0,8.994e-05]
[1731231995786,0.09688,79438.0,79434.0,0.3608]
[1731231995991,0.09688,79437.0,79434.0,0.3608]
[1731231996197,0.12170588,79439.0,79435.0,0.032]
[1731231996485,0.00012624,79440.0,79436.0,0.3608]
[1731231996694,2.4e-07,79440.0,79436.0,0.3608]
[1731231996887,0.12170588,79463.0,79438.0,0.12170588]
[1731231997092,0.21858588,79463.0,79458.0,0.3608]
[1731231997479,0.02518498,79467.0,79458.0,0.3608]
[1731231997682,0.02518498,79467.0,79465.0,0.3608]
[1731231997882,9.411e-05,79466.0,79465.0,0.3608]
[1731231999292,9.411e-05,79466.0,79465.0,0.40167748]
[1731232000284,9.411e-05,79466.0,79465.0,0.3608]
[1731232001791,1.1e-07,79466.0,79465.0,0.3608]
[1731232004196,1.1e-07,79466.0,79465.0,0.73832]
[1731232008094,1.1e-07,79466.0,79465.0,0.3608]
[1731232009394,1.1e-07,79466.0,79465.0,0.73832]
[1731232010087,0.00159,79472.0,79466.0,0.37752]
[1731232010088,1.1e-07,79472.0,79466.0,0.37752]
[1731232010295,1.1e-07,79472.0,79471.0,0.48250588]
[1731232010689,1.1e-07,79472.0,79471.0,1.15998588]
[1731232011089,0.12170588,79494.0,79472.0,0.37748]
[1731232011090,6.9e-07,79476.0,79472.0,0.37748]
[1731232011399,0.0968,79500.0,79475.0,0.3608]
[1731232011702,0.0968,79500.0,79499.0,0.3608]
[1731232011901,0.0968,79506.0,79499.0,0.3608]
[1731232012105,0.0318,79511.0,79499.0,0.3608]
[1731232012294,0.0318,79511.0,79506.0,0.3608]
[1731232012494,0.12170588,79508.0,79506.0,0.3608]
[1731232014004,0.0318,79511.0,79506.0,0.3608]
[1731232018798,0.02516422,79512.0,79506.0,0.3608]
[1731232019000,0.02516422,79512.0,79507.0,0.3608]
[1731232023798,0.09672,79518.0,79507.0,0.3608]
[1731232024002,0.09672,79518.0,79516.0,0.3608]
[1731232025205,0.22031324,79519.0,79516.0,0.3608]
[1731232025515,0.09860736,79519.0,79516.0,0.3608]
[1731232027007,0.00188736,79519.0,79516.0,0.3608]
[1731232028312,0.00188736,79519.0,79518.0,0.3608]
[1731232028610,0.09672,79534.0,79518.0,0.3608]
[1731232028810,0.0303,79538.0,79528.0,0.3608]
[1731232028811,0.04817804,79533.0,79528.0,0.3608]
[1731232029006,0.09672,79535.0,79528.0,0.3608]
[1731232029218,0.0951,79538.0,79528.0,0.3608]
[1731232029219,0.04827378,79534.0,79528.0,0.3608]
[1731232029415,0.0951,79538.0,79528.0,0.3608]
[1731232029416,0.09672,79536.0,79528.0,0.3608]
[1731232030116,0.12170588,79530.0,79528.0,0.3608]
[1731232030416,0.00411256,79532.0,79528.0,0.3608]
[1731232031009,0.19182,79538.0,79528.0,0.3608]
[1731232031010,0.00411256,79530.0,79528.0,0.3608]
[1731232032018,0.00411256,79529.0,79528.0,0.3608]
[1731232032412,0.00411256,79529.0,79528.0,0.77004]
[1731232033416,0.00411256,79529.0,79528.0,0.3928]
[1731232034111,0.00411256,79529.0,79528.0,0.77004]
[1731232034309,0.12170588,79548.0,79528.0,0.89174588]
[1731232034512,0.12170588,79548.0,79545.0,0.3608]
[1731232035716,0.09672,79551.0,79545.0,0.3608]
[1731232036732,0.12170588,79548.0,79545.0,0.3608]
[1731232041129,0.12170588,79548.0,79537.0,0.3608]
[1731232041324,0.12170588,79539.0,79537.0,0.3608]
[1731232042528,0.12170588,79545.0,79537.0,0.3608]
[1731232043427,0.3608,79544.0,79537.0,0.3608]
[1731232043836,0.12170588,79539.0,79537.0,0.3608]
[1731232044428,0.12170588,79539.0,79529.0,0.36440609]
[1731232044633,0.12170588,79530.0,79529.0,0.36268609]
[1731232045927,0.12170588,79536.0,79529.0,0.36268609]
[1731232046835,0.09664,79535.0,79529.0,0.36268609]
[1731232047231,0.3608,79544.0,79529.0,0.36268609]
[1731232047428,0.3608,79544.0,79537.0,0.3608]
[1731232047633,0.12170588,79542.0,79529.0,0.36432609]
[1731232047834,0.3608,79544.0,79529.0,0.36268609]
[1731232047835,0.12170588,79535.0,79529.0,0.36268609]
[1731232048736,0.08081658,79534.0,79529.0,0.36268609]
[1731232049038,0.04841658,79533.0,79529.0,0.36268609]
[1731232049239,0.04840241,79532.0,79529.0,0.36268609]
[1731232049442,0.0316,79533.0,79529.0,0.36268609]
[1731232049735,0.04837491,79532.0,79529.0,0.3608]
[1731232049929,0.0316,79533.0,79529.0,0.3608]
[1731232050132,0.04835642,79532.0,79529.0,0.3608]
[1731232050426,0.0316,79533.0,79529.0,0.3608]
[1731232051141,0.0316,79533.0,79520.0,0.40403221]
[1731232051433,0.12170588,79529.0,79520.0,0.40239221]
[1731232051645,0.09664,79528.0,79520.0,0.40239221]
[1731232052845,0.0316,79533.0,79520.0,0.40239221]
[1731232053133,0.09664,79527.0,79520.0,0.40239221]
[1731232053341,0.0316,79533.0,79520.0,0.40239221]
[1731232053546,0.09664,79532.0,79520.0,0.40239221]
[1731232053731,0.3608,79535.0,79528.0,0.3608]
[1731232054238,0.0643,79543.0,79530.0,0.3608]
[1731232054239,0.09664,79537.0,79530.0,0.3608]
[1731232055252,0.09664,79545.0,79530.0,0.3608]
[1731232055540,0.09664,79545.0,79540.0,0.3608]
[1731232055938,0.09664,79545.0,79541.0,0.0332]
[1731232056141,0.09664,79550.0,79541.0,0.0332]
[1731232056343,0.12170588,79549.0,79541.0,0.0332]
[1731232057136,0.12170588,79542.0,79540.0,0.3608]
[1731232058545,0.09664,79541.0,79530.0,0.36248]
[1731232058849,0.12170588,79534.0,79530.0,0.3608]
[1731232059441,0.0641,79533.0,79530.0,0.3608]
[1731232059747,0.09664,79532.0,79530.0,0.3608]
[1731232064449,0.09664,79532.0,79522.0,0.00164]
[1731232064747,0.09664,79532.0,79516.0,0.04119481]
[1731232064748,0.12170588,79529.0,79526.0,0.3608]
[1731232065347,0.09664,79528.0,79526.0,0.3608]
[1731232065951,0.09664,79527.0,79526.0,0.3608]
[1731232066940,0.12170588,79535.0,79526.0,0.3608]
[1731232067341,0.09664,79534.0,79526.0,0.3608]
[1731232067546,0.09664,79534.0,79526.0,0.39815473]
[1731232068757,0.09664,79533.0,79528.0,0.03735473]
[1731232069350,0.09664,79533.0,79529.0,0.03735473]
[1731232069748,0.09664,79533.0,79526.0,0.4010173]
[1731232069749,0.09664,79533.0,79530.0,0.03735473]
[1731232069951,0.09664,79533.0,79528.0,0.03735473]
[1731232070149,0.12170588,79542.0,79528.0,0.03735473]
[1731232070349,0.09664,79541.0,79534.0,0.3608]
[1731232071942,0.09664,79541.0,79534.0,0.39815473]
[1731232072453,0.09664,79541.0,79534.0,0.3608]
[1731232074649,0.12170588,79542.0,79534.0,0.3608]
[1731232074849,0.09664,79541.0,79534.0,0.3608]
[1731232075045,0.12170588,79542.0,79534.0,0.3608]